Cogmind - Beta 15 @@@ ROGUE MODE // 2025.08.09 @ 16:20:40 Player: Naughtyusername Result: Destroyed by G-73 Enforcer with Heavy Laser Performance ------------- Evolutions (9) 4500 Regions Visited (19) 3800 Robots Destroyed (165) 825 Value Destroyed (9886) 9886 Prototype IDs (123) 2460 Alien Tech Used (6) 1200 Bonus (7909) 7909 TOTAL SCORE: 30580 Bonus ------- High Alert Combat Kills 4065 Follower Combat Kills 1977 Network Hubs Disabled 400 Registered with UFD 300 Met Optimus in HQ 500 Met Zhirov 300 Built Enhanced Grunts 300 Met R17 at Cetus 500 Hacked Protovariant 500 Met Optimus at Protoforge 1000 Friendly Fire -1933 Cogmind --------- Core Integrity 0/1600 Matter 264/300 Energy 99/100 System Corruption 18% Temperature Cool (9) Movement Core (50) Location -1/Access Parts ------- > --- POWER (2) -------- (None) > --- PROPULSION (8) --- (None) > --- UTILITY (9) ------ (None) > --- WEAPON (6) ------- (None) > --- INVENTORY (5) ---- Energy Well (350) Improved Force Field Advanced Remote Force Field Core Reset Matrix Peak State ------------ > --- POWER ------------ Improved Quantum Reactor Hybrid Graviton Reactor > --- PROPULSION ------- Overtuned Armored Exoskeleton Heavy Shield Leg Experimental VSS Leg > --- UTILITY ---------- 0bPrime Scrap Suit Experimental Heat Sink Medium Storage Unit Experimental Optical Array Makeshift Salvage Targeting Computer Experimental Core Analyzer Experimental Core Analyzer Experimental Armor Integrity Analyzer > --- WEAPON ----------- Railgun Overtuned Railgun Helical Railgun Helical Railgun Concept XC Strikerail Concept XC Strikerail > --- INVENTORY -------- Experimental Coolant Injector Centrium Medium Armor Plating Transdimensional Reconstructor Core Reset Matrix Core Cannon Overtuned Coil Gun Overtuned Coil Gun Overtuned Railgun Micro-nuke Launcher [Rating: 204] Favorites ----------- Power Hybrid Graviton Reactor Engine Backup Power III Power Core Light Nuclear Core Reactor Hybrid Graviton Reactor Propulsion Armored Wheel Treads Medium Treads Leg Overtuned Armored Exoskeleton Wheel Armored Wheel Hover Unit Cooled Aerolev Unit Flight Unit Cooled VTOL Module Utility Advanced Hacking Suite Device Seismic Detector Storage Medium Storage Unit Processor Experimental Core Analyzer Hackware Advanced Hacking Suite Protection Centrium Medium Armor Plating Weapon Overtuned Railgun Energy Gun Medium Laser Energy Cannon Core Cannon Ballistic Gun Overtuned Railgun Ballistic Cannon Hardcell Cannon Launcher Grenade Launcher Special Weapon Improved Plasma Cutter Impact Weapon Hammer Slashing Weapon Companion Sword Build | -11 -10 -10 -7 -5 -5 -5 -5 -4 -4 -4 -4 -4 -4 -3 -3 -2 -2 -2 -1 ------- Run | Yrd Mat Sub Scr Fac Upp Upp Zhi Pro Fac Ext Cet Arc Hub Res Qua Res Tes Frg Acc Slots Evolved 18 | . . . . 10 . . . . 2 . . . . 2 . 2 . . 2 Power 1 | . . . . 1 . . . . . . . . . . . . . . . Propulsion 6 | . . . . 4 . . . . . . . . . . . . . . 2 Utility 7 | . . . . 5 . . . . 2 . . . . . . . . . . Weapon 4 | . . . . . . . . . . . . . . 2 . 2 . . . Parts Attached 204 | 1 12 10 8 30 3 1 1 1 11 13 5 2 . 14 5 2 8 69 8 Power 26 | . 1 2 3 2 1 . . . 1 2 . 1 . 3 1 1 2 6 . Engine 6 | . 1 1 3 1 . . . . . . . . . . . . . . . Core 3 | . . 1 . 1 1 . . . . . . . . . . . . . . Reactor 17 | . . . . . . . . . 1 2 . 1 . 3 1 1 2 6 . Propulsion 69 | . 4 . 3 11 1 1 . . 5 6 . . . 6 1 1 4 21 5 Treads 4 | . . . . . . . . . . . . . . . . . . 4 . Leg 14 | . . . . 3 . . . . . 1 . . . . . . . 10 . Wheel 9 | . 4 . 3 . . . . . . . . . . . . . . 2 . Hover 2 | . . . . 2 . . . . . . . . . . . . . . . Flight 40 | . . . . 6 1 1 . . 5 5 . . . 6 1 1 4 5 5 Utility 68 | 1 4 3 1 15 . . 1 1 5 1 2 1 . 5 1 . 2 22 3 Device 31 | 1 1 1 1 6 . . . . 3 1 . . . 4 1 . . 10 2 Storage 4 | . 2 . . . . . . . . . 1 1 . . . . . . . Processor 19 | . . 1 . 4 . . . 1 . . . . . 1 . . 1 10 1 Hackware 8 | . . . . 5 . . 1 . 2 . . . . . . . . . . Protection 6 | . 1 1 . . . . . . . . 1 . . . . . 1 2 . Artifact . | . . . . . . . . . . . . . . . . . . . . Weapon 41 | . 3 5 1 2 1 . . . . 4 3 . . . 2 . . 20 . Energy Gun 3 | . 1 . . . . . . . . . 2 . . . . . . . . Energy Cannon 1 | . . . . . . . . . . . . . . . 1 . . . . Ballistic Gun 25 | . 2 2 1 . . . . . . . 1 . . . . . . 19 . Ballistic Cannon 3 | . . . . . . . . . . 3 . . . . . . . . . Launcher 4 | . . 2 . . 1 . . . . . . . . . . . . 1 . Special Weapon 1 | . . . . 1 . . . . . . . . . . . . . . . Impact Weapon 1 | . . 1 . . . . . . . . . . . . . . . . . Slashing Weapon 3 | . . . . 1 . . . . . 1 . . . . 1 . . . . Piercing Weapon . | . . . . . . . . . . . . . . . . . . . . Special Melee Weapon . | . . . . . . . . . . . . . . . . . . . . Unidentified Prototypes 20 | . . . . 2 . . 1 . . . 3 1 . . 2 . 2 9 . Corrupted Parts 1 | . . . . . . . . . . . . . . . . . . 1 . System Corruption 2 | . . . . . . . . . . . . . . . . . . 2 . Parts Lost 67 | . 2 4 . 3 . . . 1 9 1 2 1 2 2 . 8 . 14 18 Power 10 | . . 2 . 1 . . . . 2 . . . 1 . . 1 . 1 2 Propulsion 26 | . 2 . . 2 . . . 1 5 1 . 1 1 1 . 3 . 2 7 Utility 19 | . . 2 . . . . . . 1 . 2 . . 1 . 3 . 2 8 Weapon 12 | . . . . . . . . . 1 . . . . . . 1 . 9 1 Highest Loss Streak 12 | . 2 2 . 1 . . . 1 5 1 1 1 2 2 . 8 . 3 12 To Critical Strikes 1 | . . . . . . . . . . . . . . . . . . . 1 Average Backups 10 | 6 14 18 17 6 5 5 5 4 4 4 7 9 9 7 9 8 8 7 4 Power . | 1 1 1 . . 1 1 1 1 . . 1 2 2 1 1 . . . . Propulsion 1 | 4 5 7 2 . . . . . . . . . . . . . . 1 . Utility 3 | . 3 5 8 3 3 3 2 2 1 1 1 1 1 2 1 1 . 1 3 Weapon 2 | 1 2 4 4 2 1 1 1 . . 1 2 5 5 2 2 3 2 3 . Tool/Special . | . . . . . . . . . . . . . . . . . . . . Unused Backups 55 | . 8 1 12 13 . . . . 2 . . . . 6 2 1 . 7 3 Power 5 | . 2 . 2 1 . . . . . . . . . . . . . . . Propulsion 15 | . 4 . 6 2 . . . . 1 . . . . . . . . 2 . Utility 22 | . 2 1 3 3 . . . . 1 . . . . 4 1 1 . 4 2 Weapon 11 | . . . 1 6 . . . . . . . . . 2 1 . . 1 . Tool/Special 2 | . . . . 1 . . . . . . . . . . . . . . 1 Average Slot Usage (%) 83 | . 99 99 93 80 94 94 94 93 87 76 74 69 68 63 77 63 52 77 54 Engine 4 | . 14 9 11 6 10 5 5 5 1 . . . . . . . . . . Reactor 3 | . . . . . . . . . 3 3 5 5 5 4 8 3 3 7 7 Leg 2 | . 3 . . . . . . . . 1 . . . . . . . 10 . Wheel 8 | . 24 28 26 2 . . . . . . . . . . . . . . . Flight 10 | . . . . 18 29 35 35 33 25 18 21 17 15 14 23 20 21 4 17 Device 11 | . 13 9 13 15 17 17 15 11 12 18 9 8 10 12 17 16 8 5 15 Storage 5 | . 14 14 12 . . . . . . . 4 5 5 2 4 4 4 3 . Processor 9 | . . . . 8 11 11 11 11 10 10 10 10 10 9 5 4 7 21 10 Hackware 5 | . . . . 12 11 11 12 17 23 17 15 15 15 14 11 7 4 . . Protection 1 | . . 4 . . . . . . . . 4 5 5 . . . 1 2 . Ballistic Gun 12 | . 22 24 22 1 . . . . . . . . . . . . . 19 . Slashing Weapon 1 | . . . . 3 5 5 5 5 5 5 . . . 3 3 3 . . . Peak Build Rating 204 | 7 11 14 22 79 84 78 88 90 112 101 111 105 97 129 161 159 122 204 180 Average Rating 88 | 6 9 12 16 63 77 77 78 82 102 89 100 98 95 101 132 143 104 176 140 On Entrance 76 | 6 7 11 13 22 78 74 78 88 78 68 101 103 97 75 129 151 58 122 164 Naked Turns 5 | . . . . . . . . . . . . . . . . . . . 5 Heaviest Build 87 | 13 51 53 56 72 13 13 17 17 24 23 54 37 33 38 42 43 35 87 46 Greatest Support 180 | 20 26 24 24 36 34 35 35 35 44 38 38 38 34 45 49 50 44 180 60 Greatest Overweight (x) 12 | . 2 2 4 2 . . . . . 1 1 . . . . 12 1 3 1 Average Overweight (x) . | . 1 1 1 . . . . . . . . . . . . . . . . Largest Inventory Capacity 20 | 8 20 20 20 20 5 5 5 5 5 5 10 10 10 10 10 10 10 10 5 Average Capacity 11 | 8 17 20 18 7 5 5 5 5 5 5 9 10 10 8 10 10 10 9 5 Most Carried 20 | 7 19 20 20 20 5 5 5 5 5 5 10 10 9 10 10 10 10 10 5 Average Carried 10 | 6 14 18 17 6 4 5 4 4 4 4 7 9 9 7 9 9 9 9 4 Final Capacity 20 | 8 20 20 20 5 5 5 5 5 5 5 10 10 10 10 10 10 10 5 5 Final Carried 20 | 7 19 17 20 5 5 5 4 5 3 5 10 9 9 9 10 10 10 4 4 Class Distribution -------------------- 32% | Mutant 11% | Hacker-Scout 11% | Scavenger-Scrapper 10% | Hacker-Sprinter 5% | Hacker-Ninja 3% | Hacker-Mutant 3% | Scavenger-Mutant 3% | Scavenger-Gunner 3% | Scavenger-Executioner Dominant Class ---------------- Mutant | -10/Materials Mutant | -10/Subcaves Mutant | -7/Scraptown Hacker-Scout | -5/Factory Hacker-Scout | -5/Upper Caves Hacker-Scout | -5/Upper Caves Hacker-Scout | -5/Zhirov Hacker-Scout | -4/Proximity Caves Hacker-Ninja | -4/Factory Hacker-Ninja | -4/Extension Commander-Sprinter | -4/Cetus Hacker-Sprinter | -4/Archives Hacker-Sprinter | -4/Hub_04(d) Hacker-Mutant | -3/Research Hacker-Sprinter | -3/Quarantine Hacker-Sprinter | -2/Research Sprinter | -2/Testing Scavenger-Scrapper | -2/Protoforge Scavenger-Sprinter | -1/Access Resources | -11 -10 -10 -7 -5 -5 -5 -5 -4 -4 -4 -4 -4 -4 -3 -3 -2 -2 -2 -1 ----------- Run | Yrd Mat Sub Scr Fac Upp Upp Zhi Pro Fac Ext Cet Arc Hub Res Qua Res Tes Frg Acc Matter Collected 8435 | 216 270 467 227 470 111 10 . 273 179 526 297 40 . 150 50 6 . 5142 1 Remotely . | . . . . . . . . . . . . . . . . . . . . Salvage Created 10116 | 28 547 320 . 616 229 . . 401 128 108 34 . . 120 . . . 7585 . Parts 432 | 3 23 16 . 23 15 . . 13 3 5 1 . . 2 . . . 328 . Haulers Intercepted 7 | . 2 . . 4 . . . . . . . . . 1 . . . . . Recyclers Shooed 3 | 1 1 . . . . . . . . 1 . . . . . . . . . Parts Field Recycled . | . . . . . . . . . . . . . . . . . . . . Retrieved Matter . | . . . . . . . . . . . . . . . . . . . . Parts Self-Destructed 20 | . . 3 . . 11 . . 6 . . . . . . . . . . . Prevented 1 | . . . . . . . . 1 . . . . . . . . . . . Kills | -11 -10 -10 -7 -5 -5 -5 -5 -4 -4 -4 -4 -4 -4 -3 -3 -2 -2 -2 -1 ------- Run | Yrd Mat Sub Scr Fac Upp Upp Zhi Pro Fac Ext Cet Arc Hub Res Qua Res Tes Frg Acc Combat Hostiles Destroyed 145 | . 11 10 . 4 5 . . 9 3 . 1 . . . . . . 102 . Guns 114 | . 10 4 . 1 . . . . . . . . . . . . . 99 . Cannons 1 | . . . . . . . . . . . 1 . . . . . . . . AOE 29 | . . 6 . 3 5 . . 9 3 . . . . . . . . 3 . Classes Destroyed 22 | 1 3 1 . 4 1 . . . 1 1 . . . . . . . 10 . Worker 1 | . . . . 1 . . . . . . . . . . . . . . . Tunneler 1 | 1 . . . . . . . . . . . . . . . . . . . Hauler 7 | . 2 . . 4 . . . . . . . . . 1 . . . . . Recycler 1 | . . . . . . . . . . 1 . . . . . . . . . Carrier 1 | . . . . . . . . . . . . . . . . . . 1 . Minesweeper 1 | . . . . . 1 . . . . . . . . . . . . . . Mechanic 3 | . . . . . . . . . . . . . . . . . . 3 . Drone 18 | . . . . . . . . . . . . . . . . . . 18 . Swarmer 23 | . 2 . . . 5 . . 9 . . . . . . . . . 7 . Saboteur 1 | . . . . . . . . . . . . . . . . . . 1 . Grunt 32 | . 9 2 . . . . . . 2 . . . . . . . . 19 . Brawler 5 | . . . . . . . . . 1 . . . . . . . . 4 . Duelist 2 | . . . . . . . . . . . . . . . . . . 2 . Protector 2 | . . . . . . . . . . . . . . . . . . 2 . Sentry 2 | . . . . 1 . . . . . . . . . . . . . 1 . Hunter 13 | . . . . 2 . . . . . . . . . . . . . 11 . Programmer 4 | . . . . 1 . . . . . . . . . . . . . 3 . Cetus Guard 1 | . . . . . . . . . . . 1 . . . . . . . . Hotshot 10 | . . . . . . . . . . . . . . . . . . 10 . Striker 9 | . . . . . . . . . . . . . . . . . . 9 . Executioner 14 | . . . . . . . . . . . . . . . . . . 14 . Subdweller 8 | . . 8 . . . . . . . . . . . . . . . . . Elite 2 | . . . . . . . . . . . . . . . . . . 2 . Scrapoid 4 | . . . . . . . . . . . . . . . . . . 4 . Decomposer 1 | . . . . . 1 . . . . . . . . . . . . . . Best Kill Streak 15 | 1 3 3 . 3 5 . . 5 3 1 1 . . 1 . . . 15 . Combat Bots Only 14 | . 3 3 . 1 5 . . 5 3 . 1 . . . . . . 14 . Max Kills in Single Turn 4 | 1 1 1 . 1 3 . . 4 1 1 1 . . 1 . . . 3 . Gunslinging 1 | . . . . . . . . . . . . . . . . . . 1 . Exploded 4 | . . 1 . 1 3 . . 4 1 . . . . . . . . 3 . Melee . | . . . . . . . . . . . . . . . . . . . . Uniques/NPCs Destroyed . | . . . . . . . . . . . . . . . . . . . . Combat | -11 -10 -10 -7 -5 -5 -5 -5 -4 -4 -4 -4 -4 -4 -3 -3 -2 -2 -2 -1 -------- Run | Yrd Mat Sub Scr Fac Upp Upp Zhi Pro Fac Ext Cet Arc Hub Res Qua Res Tes Frg Acc Hostile Shots Fired 956 | . 82 32 . 44 . 3 . 7 71 13 15 4 8 17 25 49 2 373 211 Missed 415 | . 22 11 . 29 . 2 . 2 41 3 6 1 3 7 17 19 2 123 127 Hits 541 | . 60 21 . 15 . 1 . 5 30 10 9 3 5 10 8 30 . 250 84 Melee 27 | . . . . . . . . . . . . . . . . . . 8 19 Projectile 514 | . 60 21 . 15 . 1 . 5 30 10 9 3 5 10 8 30 . 242 65 AOE 3 | . . . . . . . . . . . . . . . . . . . 3 Critical Strikes 39 | . . 1 . . . . . . 3 3 . . . 2 . 2 . 15 13 Actively Blocked 1 | . . . . . . . . . . . . . . . . . . 1 . Part Disruptions 1 | . . . . . . . . . . . . . . . . . . 1 . Damage Taken 14602 | . 688 434 . 321 14 22 . 73 648 253 185 133 112 274 168 1089 . 7331 2857 Core 3214 | . 165 31 . 46 14 . . 16 163 99 14 . . 93 43 293 . 908 1329 Absorbed by Shields 145 | . . . . . . . . . . 13 132 . . . . . . . . Redirected to Shielding 199 | . . . . . . . . . . . . . . . . . . 199 . Regen/Repaired (Parts) 394 | . . . . . . . . . . . . . . . . 96 . 298 . Core Remaining (%) 63 | 100 . . 21 . . . . 92 . . . . 76 . 89 . . 5 . Volleys Fired 371 | 2 54 36 . 6 3 . . 12 5 18 11 4 . . 5 . 5 195 15 Largest 6 | 2 2 2 . 2 1 . . 1 1 2 2 1 . . 1 . 1 6 1 Hottest 300 | 70 100 45 . 48 80 . . 80 80 110 110 80 . . 240 . 80 300 300 Shots Fired 1082 | 4 108 57 . 11 3 . . 12 5 25 21 4 . . 5 . 5 808 14 Gun 983 | 4 108 42 . 10 . . . . . . . 4 . . 5 . 5 805 . Cannon 61 | . . . . . . . . . . 25 21 . . . . . . 1 14 Launcher 37 | . . 15 . . 3 . . 12 5 . . . . . . . . 2 . Special 1 | . . . . 1 . . . . . . . . . . . . . . . Kinetic 952 | 2 64 42 . 10 . . . . . 25 21 . . . . . . 788 . Thermal 93 | 2 44 . . 1 . . . . . . . 4 . . 5 . 5 18 14 Explosive 37 | . . 15 . . 3 . . 12 5 . . . . . . . . 2 . Electromagnetic . | . . . . . . . . . . . . . . . . . . . . Robot Hit Streak 23 | 3 9 11 . 9 . . . 7 . 1 3 4 . . . . . 23 3 Robot Miss Streak 4 | 1 4 2 . 1 . . . . . 3 3 2 . . . . . 4 1 Penetration Max 2 | . . . . . . . . . . . . . . . . . . 2 . Secondary Targets 35 | . 3 1 . . . . . . . . . . . . . . . 31 . Max Gunslinging Chain 2 | . 1 1 . . . . . . . . . . . . . . . 2 . Shots Hit Robots 699 | 3 73 37 . 33 5 . . 11 1 8 7 2 . 9 2 1 . 506 1 Core Hits 380 | 2 30 18 . 19 6 . . 15 10 2 3 . . 2 . . . 273 . Critical Kills 21 | . . . . . . . . . . . . . . . . . . 21 . Critical Parts Destroyed 29 | . . . . 1 . . . . . 3 . . . . . . . 24 1 Critical Strikes 57 | 1 3 . . 1 . . . . . 3 1 . . . . . . 47 1 Burn 4 | 1 3 . . . . . . . . . . . . . . . . . . Destroy 52 | . . . . 1 . . . . . 3 . . . . . . . 47 1 Blast 1 | . . . . . . . . . . . 1 . . . . . . . . Melee Attacks 202 | . . 6 . 55 8 9 . 14 22 20 . . . 39 18 11 . . . Impact 6 | . . 6 . . . . . . . . . . . . . . . . . Slashing 196 | . . . . 55 8 9 . 14 22 20 . . . 39 18 11 . . . Piercing . | . . . . . . . . . . . . . . . . . . . . Sneak Attacks 9 | . . . . 5 2 . . . . 1 . . . 1 . . . . . Combat Hostiles . | . . . . . . . . . . . . . . . . . . . . Follow-up Attacks . | . . . . . . . . . . . . . . . . . . . . Damage Inflicted 26971 | 36 908 992 . 1834 738 . . 1105 912 424 670 50 . 439 88 103 . 18472 200 Guns 19089 | 36 908 349 . 127 . . . . . . . 50 . . . . . 17619 . Cannons 949 | . . . . . . . . . . 79 670 . . . . . . . 200 Explosions 3833 | . . 643 . 474 320 . . 728 866 . . . . . . . . 802 . Melee 3039 | . . . . 1227 418 . . 377 46 345 . . . 439 88 99 . . . Ramming 61 | . . . . 6 . . . . . . . . . . . 4 . 51 . Kinetic 19236 | 10 463 349 . 127 . . . . . 79 670 . . . . . . 17538 . Thermal 969 | 26 445 . . 167 . . . . . . . 50 . . . . . 81 200 Explosive 3666 | . . 643 . 307 320 . . 728 866 . . . . . . . . 802 . Electromagnetic . | . . . . . . . . . . . . . . . . . . . . Impact . | . . . . . . . . . . . . . . . . . . . . Slashing 3039 | . . . . 1227 418 . . 377 46 345 . . . 439 88 99 . . . Piercing . | . . . . . . . . . . . . . . . . . . . . Highest Corruption 18 | . . . . 1 1 1 1 1 . . . . . . . 7 7 11 18 Average Corruption 6 | . . . . 1 1 1 1 1 . . . . . . . 2 7 8 16 Corruption Purged . | . . . . . . . . . . . . . . . . . . . . Corruption Blocked . | . . . . . . . . . . . . . . . . . . . . Effects 156 | . . . . 4 1 1 . 5 . . . . . . . 2 6 121 16 Message Errors 32 | . . . . 1 . 1 . 1 . . . . . . . . 2 25 2 Matter Fused 38 | . . . . 1 1 . . 2 . . . . . . . . 1 30 3 Heat Flow Errors 17 | . . . . 1 . . . 1 . . . . . . . . 1 12 2 Energy Discharges 23 | . . . . 1 . . . 1 . . . . . . . . 1 18 2 Parts Rejected 1 | . . . . . . . . . . . . . . . . . . . 1 Parts Fused 1 | . . . . . . . . . . . . . . . . . . 1 . Data Loss (minor) 11 | . . . . . . . . . . . . . . . . . 1 9 1 Data Loss (major) 10 | . . . . . . . . . . . . . . . . 2 . 8 . Alerts 2 | . . . . . . . . . . . . . . . . . . 2 . Misdirections 7 | . . . . . . . . . . . . . . . . . . 3 4 Weapon Failures 14 | . . . . . . . . . . . . . . . . . . 13 1 Overload Shots 9 | . . . . . . . . . . . . . . . 3 . . 6 . Effects 2 | . . . . . . . . . . . . . . . . . . 2 . Energy Bleed 2 | . . . . . . . . . . . . . . . . . . 2 . Overflow Damage 803 | . . 23 . 112 303 . . 95 . 68 . . . 28 . 29 . 15 130 Projectiles 130 | . . . . . . . . . . . . . . . . . . . 130 Explosions 80 | . . 23 . 2 . . . 40 . . . . . . . . . 15 . Melee 593 | . . . . 110 303 . . 55 . 68 . . . 28 . 29 . . . Knockbacks 3 | . . . . . . . . . . 1 1 . . . . . . 1 . Impact 1 | . . . . . . . . . . . . . . . . . . 1 . Kinetic 2 | . . . . . . . . . . 1 1 . . . . . . . . Secondary . | . . . . . . . . . . . . . . . . . . . . Self-Inflicted Damage 78 | . . 73 . 3 . . . . . . . . . . . 2 . . . Shots 2 | . . 2 . . . . . . . . . . . . . . . . . Rammed 2 | . . . . 1 . . . . . . . . . . . 1 . . . Targets Rammed 5 | . . . . 1 . . . . . . . . . . . 1 . 3 . Kicked 3 | . . . . . . . . . . . . . . . . . . 3 . Crushed . | . . . . . . . . . . . . . . . . . . . . Highest Temperature 613 | 18 387 . . 131 72 86 26 214 86 9 108 123 . 15 240 79 334 613 234 Average Temperature 66 | 10 109 . . 31 26 32 9 72 22 5 44 64 . 6 102 30 144 105 80 Received Heat Transfer 1246 | . 288 120 . 66 . . . . 108 33 18 9 9 30 24 90 . 334 117 Effects 10 | . 5 . . . . . . . . . . . . . . . 1 4 . Shutdowns 1 | . . . . . . . . . . . . . . . . . 1 . . Energy Bleed 2 | . 1 . . . . . . . . . . . . . . . . 1 . Interference 4 | . 3 . . . . . . . . . . . . . . . . 1 . Matter Decay 2 | . 1 . . . . . . . . . . . . . . . . 1 . Short Circuit 1 | . . . . . . . . . . . . . . . . . . 1 . Siege Activations . | . . . . . . . . . . . . . . . . . . . . Martial Activations . | . . . . . . . . . . . . . . . . . . . . Shielding Activations . | . . . . . . . . . . . . . . . . . . . . Robots Disrupted 1 | . . . . 1 . . . . . . . . . . . . . . . Combat Hostiles . | . . . . . . . . . . . . . . . . . . . . Robots Corrupted . | . . . . . . . . . . . . . . . . . . . . Combat Hostiles . | . . . . . . . . . . . . . . . . . . . . Parts Fried . | . . . . . . . . . . . . . . . . . . . . Impact Corruptions . | . . . . . . . . . . . . . . . . . . . . Robots Melted 1 | . 1 . . . . . . . . . . . . . . . . . . Combat Hostiles 1 | . 1 . . . . . . . . . . . . . . . . . . Parts Melted 6 | 1 4 . . . . . . . . . . . . . . . . 1 . Heat Transferred 2124 | 148 1554 . . 200 . . . . . . . 74 . . . . . 148 . Parts Sabotaged . | . . . . . . . . . . . . . . . . . . . . Parts Stolen . | . . . . . . . . . . . . . . . . . . . . Parts Stripped . | . . . . . . . . . . . . . . . . . . . . Power Chain Reactions . | . . . . . . . . . . . . . . . . . . . . Alert | -11 -10 -10 -7 -5 -5 -5 -5 -4 -4 -4 -4 -4 -4 -3 -3 -2 -2 -2 -1 ------- Run | Yrd Mat Sub Scr Fac Upp Upp Zhi Pro Fac Ext Cet Arc Hub Res Qua Res Tes Frg Acc Maximum Alert Level 5 | . . . . 3 . . . . 2 3 2 1 . . 1 1 . 5 4 Low Security (%) 54 | 100 100 . . 54 . . . . 66 3 . . 100 100 96 99 100 35 . Level 1 7 | . . . . . . . . . 25 36 . 100 . . 3 . . 2 . Level 2 8 | . . . . 8 . . . . 7 14 100 . . . . . . 4 . Level 3 11 | . . . . 36 . . . . . 45 . . . . . . . 13 . Level 4 14 | . . . . . . . . . . . . . . . . . . 31 100 Level 5 4 | . . . . . . . . . . . . . . . . . . 12 . High Security . | . . . . . . . . . . . . . . . . . . . . Max Security . | . . . . . . . . . . . . . . . . . . . . Peak Influence 1989 | 5 101 . . 988 . . . . 476 864 652 342 132 65 208 203 123 1989 1355 Initial 1192 | . . . . . . . . . 59 233 462 244 102 56 15 120 99 46 1192 Average 447 | 2 26 . . 402 . . . . 141 554 567 303 109 26 31 126 98 793 1259 Influence Increases 9240 | 5 395 50 . 1338 145 30 . 205 844 1205 480 198 56 359 348 248 64 2783 487 Destroy 0b10 Robot/C 3120 | . 220 40 . 80 100 . . 180 60 500 200 80 . . . . . 1660 . Destroy 0b10 Robot/NC 215 | 5 10 . . 25 20 . . 5 . 20 10 . . 5 . . . 115 . Destroy Leader 436 | . 54 10 . 46 10 . . 20 10 34 10 . . 2 . . . 240 . Allied During Kill 679 | . . . . . . . . . . 379 220 80 . . . . . . . Successful Hack 634 | . 35 . . 58 . . . . 58 7 . . . 146 39 71 37 68 115 Select Force Hacks 50 | . . . . . . . . . . . . . 50 . . . . . . Disable Machine 495 | . . . . 150 . . . . 15 30 . 30 . 15 60 . . 135 60 Destroy Structure 1061 | . 1 . . 244 . . . . 86 70 40 8 6 56 24 27 12 310 177 Partial Spotted 435 | . . . . 60 . . . . 120 75 . . . . 90 15 15 15 45 Lose Combat Pursuer 2115 | . 75 . . 675 15 30 . . 495 90 . . . 135 135 135 . 240 90 Influence Decreases 7911 | 5 395 50 . 510 467 187 349 110 463 855 694 518 240 439 161 285 159 877 1147 Entered New Map 3027 | . . . . . 307 97 349 . 36 243 364 368 190 52 13 95 79 37 797 Time Decay 3440 | 5 377 30 . 330 160 90 . 100 244 362 190 60 10 294 138 110 80 690 170 Search Patrol Dispatched 150 | . . . . 150 . . . . . . . . . . . . . . . Lost Part 629 | . 15 20 . 20 . . . 10 90 10 20 10 20 14 . 80 . 140 180 Lost Ally 573 | . 3 . . 10 . . . . 60 240 120 80 20 20 10 . . 10 . Purge Threat 92 | . . . . . . . . . 33 . . . . 59 . . . . . Squads Dispatched 71 | . 1 . . 18 . . . . 12 2 1 . 4 14 2 2 2 6 7 Investigation 37 | . . . . 12 . . . . 8 1 1 . 4 7 . 1 . 1 2 Extermination 10 | . . . . 3 . . . . 2 . . . . . 1 1 . 1 2 Reinforcement 21 | . 1 . . 3 . . . . 2 1 . . . 7 1 . 1 4 1 Assault 3 | . . . . . . . . . . . . . . . . . 1 . 2 Garrison . | . . . . . . . . . . . . . . . . . . . . Intercept . | . . . . . . . . . . . . . . . . . . . . Searches Triggered 1 | . . . . 1 . . . . . . . . . . . . . . . Construction Impeded . | . . . . . . . . . . . . . . . . . . . . Haulers Reinforced 4 | . . . . 1 . . . . . . . . . 3 . . . . . Active Scanning Responses . | . . . . . . . . . . . . . . . . . . . . Cargo Convoy Interrupts . | . . . . . . . . . . . . . . . . . . . . Stealth | -11 -10 -10 -7 -5 -5 -5 -5 -4 -4 -4 -4 -4 -4 -3 -3 -2 -2 -2 -1 --------- Run | Yrd Mat Sub Scr Fac Upp Upp Zhi Pro Fac Ext Cet Arc Hub Res Qua Res Tes Frg Acc Distress Signals 34 | . 2 . . 3 . . . . 5 1 2 . . 8 . 1 . 9 3 Communications Jammed 44 | . . . . . . . . . 10 1 . . . . 25 6 1 1 . Distress Signals 43 | . . . . . . . . . 10 1 . . . . 25 5 1 1 . Times Spotted 563 | . 32 10 . 49 2 1 . 5 54 29 10 4 6 11 20 19 2 224 85 Peak Tracking Total 36 | . 5 3 . 9 2 2 . 3 15 6 5 2 6 5 8 9 2 14 36 Tactical Retreats 73 | . 4 . . 19 1 1 . . 12 4 . . . 8 3 3 . 11 7 Traps | -11 -10 -10 -7 -5 -5 -5 -5 -4 -4 -4 -4 -4 -4 -3 -3 -2 -2 -2 -1 ------- Run | Yrd Mat Sub Scr Fac Upp Upp Zhi Pro Fac Ext Cet Arc Hub Res Qua Res Tes Frg Acc Traps Triggered 16 | . . . . 1 . . . . 1 5 . . . 1 1 1 1 3 2 Indirectly . | . . . . . . . . . . . . . . . . . . . . Trap Hack Attempts . | . . . . . . . . . . . . . . . . . . . . Triggered . | . . . . . . . . . . . . . . . . . . . . Disarmed . | . . . . . . . . . . . . . . . . . . . . Reprogrammed . | . . . . . . . . . . . . . . . . . . . . Reused . | . . . . . . . . . . . . . . . . . . . . Traps Extracted . | . . . . . . . . . . . . . . . . . . . . Installed . | . . . . . . . . . . . . . . . . . . . . Triggered . | . . . . . . . . . . . . . . . . . . . . Objects Rigged 11 | . . . . 11 . . . . . . . . . . . . . . . Exploded 3 | . . . . 3 . . . . . . . . . . . . . . . Machines | -11 -10 -10 -7 -5 -5 -5 -5 -4 -4 -4 -4 -4 -4 -3 -3 -2 -2 -2 -1 ---------- Run | Yrd Mat Sub Scr Fac Upp Upp Zhi Pro Fac Ext Cet Arc Hub Res Qua Res Tes Frg Acc Machines Disabled 35 | . . . . 10 . . . . 1 2 1 2 . 1 4 . . 10 4 Max in Single Turn 6 | . . . . 6 . . . . 1 1 . 1 . 1 1 . . 1 1 Garrison Access 9 | . . . . 3 . . . . 2 . . . . 1 1 2 . . . Network Hub 2 | . . . . . . . . . . . . . 2 . . . . . . Energy Cycler 1 | . . . . . . . . . . . . . . . . . . . 1 Machines Repaired . | . . . . . . . . . . . . . . . . . . . . Machines Dismantled . | . . . . . . . . . . . . . . . . . . . . Machines Sabotaged 1 | . . . . . . . . . . . . . 1 . . . . . . Overloaded Fab Kills . | . . . . . . . . . . . . . . . . . . . . Hacking | -11 -10 -10 -7 -5 -5 -5 -5 -4 -4 -4 -4 -4 -4 -3 -3 -2 -2 -2 -1 --------- Run | Yrd Mat Sub Scr Fac Upp Upp Zhi Pro Fac Ext Cet Arc Hub Res Qua Res Tes Frg Acc Machines Accessed 141 | . 9 . 5 31 . 1 4 . 24 14 2 . 3 14 8 7 5 8 6 Terminals 87 | . 7 . . 15 . . . . 14 13 2 . 3 8 6 4 3 7 5 Fabricators 5 | . . . . 3 . . . . 1 . . . . 1 . . . . . Repair Stations 1 | . . . . 1 . . . . . . . . . . . . . . . Recycling Units 24 | . 2 . . 8 . . . . 6 1 . . . 4 . 1 . 1 1 Scanalyzers 5 | . . . . 1 . . . . 1 . . . . . 1 . 2 . . Garrison Access 9 | . . . . 3 . . . . 2 . . . . 1 1 2 . . . Total Hacks 561 | . 26 . 40 84 . 1 17 . 91 25 7 . 7 87 30 49 19 49 29 Successful 352 | . 16 . 40 66 . 1 17 . 63 16 3 . 3 49 19 18 8 28 5 Failed 209 | . 10 . . 18 . . . . 28 9 4 . 4 38 11 31 11 21 24 Catastrophic 30 | . 1 . . 1 . . . . 3 . 1 . 1 2 1 8 2 2 8 Database Lockouts . | . . . . . . . . . . . . . . . . . . . . Manual 317 | . 21 . . 51 . . . . 60 8 1 . 7 56 24 29 15 34 11 Terminals 404 | . 23 . . 55 . . . . 70 21 7 . 7 67 25 41 16 46 26 Fabricators 14 | . . . . 5 . . . . 2 . . . . 7 . . . . . Repair Stations 1 | . . . . 1 . . . . . . . . . . . . . . . Recycling Units 58 | . 3 . . 16 . . . . 14 4 . . . 12 . 3 . 3 3 Scanalyzers 10 | . . . . 2 . . . . 1 . . . . . 4 . 3 . . Garrison Access 16 | . . . . 5 . . . . 4 . . . . 1 1 5 . . . Terminal Hacks 176 | . 2 . 40 20 . 1 17 . 28 12 3 . . 19 6 8 1 15 4 Record 51 | . . . 35 . . . 5 . . . 2 . . 1 1 1 . 6 . Part Schematic 10 | . . . . . . . 4 . 4 . . . . 2 . . . . . Robot Analysis 9 | . . . 4 . . . 4 . . . . . . 1 . . . . . Prototype ID Bank 13 | . . . . 4 . . 4 . 3 . . . . 2 . . . . . Open Door 15 | . . . 1 . . 1 . . 1 11 1 . . . . . . . . Branch Access Points 4 | . . . . 1 . . . . 1 . . . . . . 1 . . 1 Emergency Access Points 5 | . . . . 2 . . . . . . . . . 1 1 . . . 1 Machine Index 1 | . . . . 1 . . . . . . . . . . . . . . . Terminal Index 5 | . 1 . . 1 . . . . . . . . . 1 1 . . 1 . Fabricator Index 2 | . . . . . . . . . . . . . . 1 . . . 1 . Repair Station Index 1 | . . . . 1 . . . . . . . . . . . . . . . Recycling Unit Index 5 | . . . . 2 . . . . . . . . . 1 . 1 . 1 . Garrison Index 2 | . . . . . . . . . . . . . . 1 . 1 . . . Alert Level 2 | . . . . . . . . . . . . . . 1 . 1 . . . Unreport Threat 2 | . . . . . . . . . 1 . . . . 1 . . . . . Locate Traps 6 | . . . . 2 . . . . . . . . . . . . . 3 1 Patrol Status 1 | . . . . . . . . . 1 . . . . . . . . . . Recall Investigation 9 | . . . . 2 . . . . 7 . . . . . . . . . . Recall Extermination 6 | . . . . . . . . . 2 . . . . 1 2 1 . . . Recall Reinforcements 4 | . . . . 2 . . . . 2 . . . . . . . . . . Recall Assault 1 | . . . . . . . . . 1 . . . . . . . . . . Hauler Manifests 3 | . . . . . . . . . 2 . . . . 1 . . . . . Registered Components 3 | . . . . . . . . . 1 . . . . 1 . . . 1 . Registered Prototypes 2 | . . . . . . . . . 1 . . . . 1 . . . . . Zone Layout 13 | . 1 . . 2 . . . . 1 1 . . . 2 1 2 . 2 1 Protovariant Controls 1 | . . . . . . . . . . . . . . . . . 1 . . Fabricator Hacks 12 | . . . . 4 . . . . 2 . . . . 6 . . . . . Network Status 4 | . . . . 2 . . . . . . . . . 2 . . . . . Load Schematic 5 | . . . . 1 . . . . 1 . . . . 3 . . . . . Build 3 | . . . . 1 . . . . 1 . . . . 1 . . . . . Repair Station Hacks 1 | . . . . 1 . . . . . . . . . . . . . . . Refit 1 | . . . . 1 . . . . . . . . . . . . . . . Recycling Unit Hacks 18 | . 2 . . 6 . . . . 6 1 . . . 3 . . . . . Report Inventory 2 | . . . . 2 . . . . . . . . . . . . . . . Retrieve Components 16 | . 2 . . 4 . . . . 6 1 . . . 3 . . . . . Scanalyzer 7 | . . . . 2 . . . . 1 . . . . . 2 . 2 . . Insert Component 6 | . . . . 1 . . . . 1 . . . . . 2 . 2 . . Analyze 1 | . . . . 1 . . . . . . . . . . . . . . . Garrison Access Hacks 9 | . . . . 3 . . . . 2 . . . . 1 1 2 . . . Seal Access 9 | . . . . 3 . . . . 2 . . . . 1 1 2 . . . Unauthorized Hacks 129 | . 12 . . 30 . . . . 24 3 . . 3 20 10 8 5 13 1 Terminals 109 | . 12 . . 22 . . . . 18 3 . . 3 16 10 7 5 12 1 Track 12 | . 1 . . 1 . . . . 2 1 . . . 1 2 2 1 1 . Assimilate 17 | . 1 . . 3 . . . . 6 . . . . 3 1 . 2 1 . Botnet 34 | . 4 . . 6 . . . . 4 2 . . 1 5 3 2 2 4 1 Detonate 2 | . . . . 2 . . . . . . . . . . . . . . . Disrupt 1 | . . . . . . . . . . . . . . . 1 . . . . Operators 7 | . 1 . . 1 . . . . 1 . . . . 1 1 1 . 1 . Skim 34 | . 5 . . 9 . . . . 5 . . . . 6 2 2 . 5 . Sabotage 2 | . . . . . . . . . . . . . 2 . . . . . . Fabricators 1 | . . . . 1 . . . . . . . . . . . . . . . Haulers 1 | . . . . 1 . . . . . . . . . . . . . . . Repair Stations . | . . . . . . . . . . . . . . . . . . . . Recycling Units 19 | . . . . 7 . . . . 6 . . . . 4 . 1 . 1 . Fedlink 19 | . . . . 7 . . . . 6 . . . . 4 . 1 . 1 . Scanalyzers . | . . . . . . . . . . . . . . . . . . . . Garrison Access . | . . . . . . . . . . . . . . . . . . . . Data Cores Recovered . | . . . . . . . . . . . . . . . . . . . . Used . | . . . . . . . . . . . . . . . . . . . . Hacking Detections 86 | . 8 . . 21 . . . . 16 5 2 . 2 8 4 5 3 6 6 Full Trace Events 14 | . . . . 5 . . . . 2 1 1 . 1 2 . . . . 2 Feedback Events . | . . . . . . . . . . . . . . . . . . . . Feedback Blocked 1 | . . . . . . . . . . . . . 1 . . . . . . Robot Schematics Acquired . | . . . . . . . . . . . . . . . . . . . . Robots Built . | . . . . . . . . . . . . . . . . . . . . Authchips . | . . . . . . . . . . . . . . . . . . . . Time . | . . . . . . . . . . . . . . . . . . . . Total Robot Build Rating . | . . . . . . . . . . . . . . . . . . . . Part Schematics Acquired 10 | . . . . 1 . . 4 . 3 . . . . 2 . . . . . Parts Built 4 | . . . . 1 . . . . 2 . . . . 1 . . . . . Authchips . | . . . . . . . . . . . . . . . . . . . . Time 185 | . . . . 84 . . . . 39 . . . . 62 . . . . . Total Part Build Rating 27 | . . . . 6 . . . . 14 . . . . 7 . . . . . Parts Repaired . | . . . . . . . . . . . . . . . . . . . . Time . | . . . . . . . . . . . . . . . . . . . . Parts Recycled . | . . . . . . . . . . . . . . . . . . . . Recycled Matter . | . . . . . . . . . . . . . . . . . . . . Retrieved Matter . | . . . . . . . . . . . . . . . . . . . . Retrieved Components 34 | . 11 . . 3 . . . . 12 2 . . . 6 . . . . . Parts Scanalyzed 1 | . . . . 1 . . . . . . . . . . . . . . . Part Schematics Acquired 1 | . . . . 1 . . . . . . . . . . . . . . . Parts Damaged 1 | . . . . 1 . . . . . . . . . . . . . . . Bothacking | -11 -10 -10 -7 -5 -5 -5 -5 -4 -4 -4 -4 -4 -4 -3 -3 -2 -2 -2 -1 ------------ Run | Yrd Mat Sub Scr Fac Upp Upp Zhi Pro Fac Ext Cet Arc Hub Res Qua Res Tes Frg Acc Used RIF Installer . | . . . . . . . . . . . . . . . . . . . . Robots Hacked . | . . . . . . . . . . . . . . . . . . . . Non-combat . | . . . . . . . . . . . . . . . . . . . . Combat . | . . . . . . . . . . . . . . . . . . . . Robot Hacks Applied . | . . . . . . . . . . . . . . . . . . . . Relay Couplers Released . | . . . . . . . . . . . . . . . . . . . . Fabnet Peak Effective % . | . . . . . . . . . . . . . . . . . . . . Robots Rewired 12 | . . . . . . . . . . 12 . . . . . . . . . Allies Hacked . | . . . . . . . . . . . . . . . . . . . . Hacks Repelled . | . . . . . . . . . . . . . . . . . . . . Allies | -11 -10 -10 -7 -5 -5 -5 -5 -4 -4 -4 -4 -4 -4 -3 -3 -2 -2 -2 -1 -------- Run | Yrd Mat Sub Scr Fac Upp Upp Zhi Pro Fac Ext Cet Arc Hub Res Qua Res Tes Frg Acc Total Allies 45 | . 1 . . 1 . . . . 6 28 5 . . 2 1 . . 1 . Largest Group 15 | . 1 . . 1 . . . . 2 14 15 13 8 1 . . . 1 . Highest-Rated Group 950 | . 10 . . 10 . . . . 52 706 950 858 498 40 . . . 45 . Highest-Rated Ally 159 | . 10 . . 10 . . . . 26 159 143 143 96 40 . . . 45 . Total Orders . | . . . . . . . . . . . . . . . . . . . . Ally Attacks 240 | . . . . . . . . . . 136 63 34 7 . . . . . . Total Damage 6029 | . . . . . . . . . . 3342 1527 1050 110 . . . . . . Kills 43 | . . . . . . . . . . 28 11 4 . . . . . . . Allies Corrupted 1 | . . . . . . . . . . 1 . . . . . . . . . Allies Melted 2 | . . . . . . . . . . . . . . . . . . 2 . Intel | -11 -10 -10 -7 -5 -5 -5 -5 -4 -4 -4 -4 -4 -4 -3 -3 -2 -2 -2 -1 ------- Run | Yrd Mat Sub Scr Fac Upp Upp Zhi Pro Fac Ext Cet Arc Hub Res Qua Res Tes Frg Acc Active Infowar (turns) 12369 | 19 1327 453 1928 844 324 180 39 335 543 812 385 124 28 789 382 232 156 3118 351 Optics 3220 | . . . . . . . . . . . . . . . . . . 2869 351 Sensors 4858 | . . . . 739 324 180 39 335 542 809 15 80 28 786 382 219 156 224 . Terrain 2913 | . . . . 758 324 180 15 334 481 808 13 . . . . . . . . Structural 159 | . 3 94 . 62 . . . . . . . . . . . . . . . Seismic 3882 | 19 1324 359 1928 245 . . . . . . . . . 7 . . . . . Jamming 3042 | . . . . . . . . . 280 672 385 124 28 778 382 173 102 118 . ECM 141 | . . . . . . . . . . . . . . . . . . . 141 Robot Analysis Total 9 | . . . 4 . . . 4 . . . . . . 1 . . . . . Derelict Logs Recovered 5 | . . 1 . . 2 2 . . . . . . . . . . . . . Drone Launches . | . . . . . . . . . . . . . . . . . . . . Drone Recoveries . | . . . . . . . . . . . . . . . . . . . . Exploration | -11 -10 -10 -7 -5 -5 -5 -5 -4 -4 -4 -4 -4 -4 -3 -3 -2 -2 -2 -1 ------------- Run | Yrd Mat Sub Scr Fac Upp Upp Zhi Pro Fac Ext Cet Arc Hub Res Qua Res Tes Frg Acc Turns Passed 13002 | 32 1499 679 2051 903 324 180 39 335 543 836 385 124 28 789 382 232 164 3118 359 Spaces Moved 17081 | 20 705 454 1780 1918 560 587 126 856 1480 841 302 104 87 1669 866 555 578 2825 768 Core 265 | . . . 252 . . . . . . . . . . . . 2 . . 11 Treads 3 | . . . . . . . . . . . . . . . . . . 3 . Legs 1613 | 20 102 . . . . . . . . . . . . . . . . 1491 . Wheels 2704 | . 603 454 1528 79 . . . . . . . . . . . . . 40 . Hover . | . . . . . . . . . . . . . . . . . . . . Flight 12496 | . . . . 1839 560 587 126 856 1480 841 302 104 87 1669 866 553 578 1291 757 Fastest Speed 12 | 120 90 105 50 15 15 22 24 24 19 24 28 28 32 24 18 18 12 12 20 Average Speed 50 | 120 110 118 110 30 25 23 24 24 26 31 31 30 32 32 23 26 17 77 31 Slowest Speed 650 | 120 120 120 150 120 26 24 24 27 40 124 108 32 34 40 25 650 93 200 115 Overloaded Moves 480 | . . . . 117 2 . . . 96 . . . . . 88 41 13 123 . Propulsion Burnouts 1 | . . . . . . . . . 1 . . . . . . . . . . Robots Hopped 149 | . . . . 24 . . . . 23 12 . 2 4 14 22 9 9 13 17 Potential Cave-ins 26 | . . . . . . . . . 2 8 . . . . . . . 2 14 Cave-ins Triggered 2 | . . . . . . . . . . . . . . . . . . . 2 Teleports 2 | . . . . . . . . . . . . . . . . . . 2 . Exploration Rate (%) 56 | 2 98 34 91 60 75 73 60 77 48 59 86 68 13 39 70 24 52 64 36 Regions Visited 19 Branch Regions 13 Pre-discovered Areas 12 | . . . 5 1 . 1 3 . 2 . . . . . . . . . . Known Exits Taken 16 | . . . 1 1 1 1 1 1 1 1 1 1 1 1 1 1 1 1 . Unknown Exits Taken 3 | 1 1 1 . . . . . . . . . . . . . . . . . Scrap Searched 16 | . . . 4 . 3 5 . 4 . . . . . . . . . . . Spaces Dug 355 | . . . . 110 3 9 . 27 17 14 . . . 28 12 9 4 8 114 Terrain Destroyed 792 | . . 85 . 138 32 9 . 84 60 28 2 . . 28 12 9 4 156 145 Melee 116 | . . . . 25 3 9 . 8 17 7 . . . 28 10 9 . . . Projectile 272 | . . . . . . . . . . 21 2 . . . 2 . 4 110 133 AOE 403 | . . 85 . 113 29 . . 76 43 . . . . . . . . 45 12 Terrain Rammed . | . . . . . . . . . . . . . . . . . . . . Walls Destroyed . | . . . . . . . . . . . . . . . . . . . . Machines Disabled . | . . . . . . . . . . . . . . . . . . . . Actions | -11 -10 -10 -7 -5 -5 -5 -5 -4 -4 -4 -4 -4 -4 -3 -3 -2 -2 -2 -1 --------- Run | Yrd Mat Sub Scr Fac Upp Upp Zhi Pro Fac Ext Cet Arc Hub Res Qua Res Tes Frg Acc Total 20417 | 23 1324 530 1875 2135 726 615 134 945 1565 1345 570 190 82 1842 988 608 626 3438 856 Wait 2019 | . 521 6 . 68 150 18 . 52 55 333 235 77 . 101 89 34 30 195 55 Move 16773 | 19 704 453 1779 1873 559 586 125 855 1435 815 301 99 79 1640 823 537 560 2798 733 Hop 137 | . . . . 20 . . . . 21 12 . 2 3 14 20 8 8 13 16 Pick Up 153 | 1 20 4 42 19 . . 2 . 5 5 2 . . 14 8 3 2 22 4 Fast Attach 121 | 1 3 . 7 10 2 . 2 . 3 11 4 1 . 8 4 1 6 52 6 Attach 95 | . 4 4 3 22 1 . 2 5 4 6 5 3 . 5 3 4 7 15 2 Detach 79 | . . . 3 15 1 . . 6 . 8 8 2 . 2 3 2 5 23 1 Swap 90 | . 6 17 5 13 . 1 . 1 5 5 4 . . 3 5 1 1 23 . Drop 211 | . 12 4 36 33 2 1 3 . 10 7 . 2 . 16 10 6 2 63 4 Fire 371 | 2 54 36 . 6 3 . . 12 5 18 11 4 . . 5 . 5 195 15 Melee 202 | . . 6 . 55 8 9 . 14 22 20 . . . 39 18 11 . . . Ram 2 | . . . . 1 . . . . . . . . . . . 1 . . . Kick 3 | . . . . . . . . . . . . . . . . . . 3 . Crush . | . . . . . . . . . . . . . . . . . . . . Escape Stasis 125 | . . . . . . . . . . 69 . . . . . . . 36 20 Rewire 36 | . . . . . . . . . . 36 . . . . . . . . . Trap . | . . . . . . . . . . . . . . . . . . . . Miscellaneous . | . . . . . . . . . . . . . . . . . . . . Route ------- -11/Scrapyard -10/Materials (discovered 5 exits: [*Mat x3] / [*Min] / [*Sub]) -10/Subcaves -7/Scraptown (discovered 2 exits: *Fac x2) -5/Factory (discovered 6 exits: *Fac x4 / *Upp x2) -5/Upper Caves -5/Upper Caves (discovered 2 exits: *Fac / *Zhi) -5/Zhirov -4/Proximity Caves -4/Factory (discovered 7 exits: *Res x2 / *Upp x2 / *Ext x2 / Arm) -4/Extension (discovered 2 exits: *Res / *Cet) -4/Cetus (discovered 2 exits: *Res / *Arc) -4/Archives -4/Hub_04(d) (discovered 2 exits: *Res x2) -3/Research (discovered 3 exits: *Res / *Qua x2) -3/Quarantine -2/Research (discovered 4 exits: *Acc x2 / *Tes x2) -2/Testing (discovered 3 exits: *Acc / *Sec / *Frg) -2/Protoforge -1/Access (discovered 1 exit: Com) History --------- Turn | Location | Event 7 | -11/Scrapyard | Discovered new exit (range 2) 33 | -11/Scrapyard | Entered Materials 290 | -10/Materials | Discovered new exit (range 14) 315 | -10/Materials | Build established: Mutant 445 | -10/Materials | Discovered new exit (range 16) 532 | -10/Materials | Discovered new exit (range 4) 671 | -10/Materials | Core integrity fell below 50% 717 | -10/Materials | Discovered new exit (range 7) 952 | -10/Materials | Learned Storage non-interactive machine intel 1029 | -10/Materials | Loaded intel: 12 trap records 1056 | -10/Materials | Discovered new exit (range 8) 1205 | -10/Materials | Learned Storage trap positions 1245 | -10/Materials | Learned location of 1 exit from Recycling 1355 | -10/Materials | Learned Storage interactive machine intel 1532 | -10/Materials | Entered Subcaves 1533 | -10/Subcaves | Approached by a straggling Scientist 1620 | -10/Subcaves | Learned location of 1 exit from Materials 1643 | -10/Subcaves | A swath of the cavern ceiling suddenly collapsed 1942 | -10/Subcaves | A swath of the cavern ceiling suddenly collapsed 2200 | -10/Subcaves | Scientist uncovered a shortcut to Scraptown 2211 | -10/Subcaves | Entered Scraptown 2459 | -7/Scraptown | Visited Awakened 2505 | -7/Scraptown | Visited IN-MT5's Study 2531 | -7/Scraptown | Visited Spacefarers 2593 | -7/Scraptown | Visited Red Mages 2609 | -7/Scraptown | Visited Junk Repository 2674 | -7/Scraptown | Visited Shadow of the Wyrm 2777 | -7/Scraptown | Heard Great Nut preacher, LISTEN AND RECITE! 3015 | -7/Scraptown | Visited UFD Registry 3015 | -7/Scraptown | Registered with UFD as "Beamchaser" 3102 | -7/Scraptown | Discovered new exit (range 13) 3264 | -7/Scraptown | Visited Abandonware Association 3280 | -7/Scraptown | Learned abandonware demo "TRNCOAT.EXE" 3309 | -7/Scraptown | Visited LU-1G1's Boring Crew 3360 | -7/Scraptown | Visited Derelict Rescue Squad 3368 | -7/Scraptown | Found DRS Beacon 3520 | -7/Scraptown | Visited Scrap Suit Storage 3543 | -7/Scraptown | Visited Analyses Database 3580 | -7/Scraptown | Visited Sword Containment 3624 | -7/Scraptown | Visited Scrapoid Research Area 3659 | -7/Scraptown | Visited DA-N13 Charitable Foundation 3681 | -7/Scraptown | Found DCF Scrap (30 items) 3788 | -7/Scraptown | Visited Cartography Club 3845 | -7/Scraptown | Found Surveybot 17 Chip 3935 | -7/Scraptown | Found Deep Structural Scanner 3942 | -7/Scraptown | Learned location of Quarantine (-3) 3942 | -7/Scraptown | Learned location of Archives (-4) 3942 | -7/Scraptown | Learned 12 Factory zone layouts 3942 | -7/Scraptown | Learned 12 Research zone layouts 3942 | -7/Scraptown | Learned 16 Lower Caves zone layouts 3942 | -7/Scraptown | Learned 4 Hub_04(d) zone layouts 3942 | -7/Scraptown | Learned 8 Upper Caves zone layouts 3942 | -7/Scraptown | Learned location of 2 exits from Factory 3942 | -7/Scraptown | Learned location of 1 exit from Lower Caves 3942 | -7/Scraptown | Identified exit to Factory 4196 | -7/Scraptown | Met Optimus 4196 | -7/Scraptown | Accepted into 0bPrime 4262 | -7/Scraptown | Entered Factory 4262 | -5/Factory | Evolved 10 slots: Power x1, Propulsion x4, Utility x5 4263 | -5/Factory | Identified exit to Factory 4264 | -5/Factory | Identified exit to Upper Caves 4440 | -5/Factory | Loaded intel: 8 recycling unit locations 4626 | -5/Factory | Learned 2 Upper Caves zone layouts 4666 | -5/Factory | Found Prototype Launcher 4675 | -5/Factory | Learned location of Protoforge (-2) 4725 | -5/Factory | Identified Mni. Smartbomb Launcher 4773 | -5/Factory | Learned Extension stockpile data 4833 | -5/Factory | Loaded intel: 4 scanalyzer locations 4848 | -5/Factory | Found Prototype Processor 4973 | -5/Factory | Build established: Hacker-Scout 5012 | -5/Factory | Learned Factory scanalyzer intel 5015 | -5/Factory | Fabricated Mni. Smartbomb Launcher? 5162 | -5/Factory | Search patrols dispatched 5165 | -5/Factory | Entered Upper Caves 5166 | -5/Upper Caves | Identified exit to Upper Caves 5489 | -5/Upper Caves | Entered another Upper Caves area 5491 | -5/Upper Caves | Discovered exit to Factory (range 4) 5521 | -5/Upper Caves | Learned Factory interactive machine intel 5657 | -5/Upper Caves | Discovered new exit (range 17) 5662 | -5/Upper Caves | Learned location of Armory (-4) 5668 | -5/Upper Caves | Encountered a Warlord checkpoint 5669 | -5/Upper Caves | Identified exit to Zhirov 5669 | -5/Upper Caves | Entered Zhirov 5669 | -5/Zhirov | Discovered new exit (range 3) 5670 | -5/Zhirov | Identified exit to Proximity Caves 5674 | -5/Zhirov | Met Zhirov 5679 | -5/Zhirov | Learned location of Testing (-2) 5679 | -5/Zhirov | Learned location of Command (-1) 5681 | -5/Zhirov | Zhirov requested help retrieving the SGEMP Prototype 5685 | -5/Zhirov | Found Alien Artifact 5685 | -5/Zhirov | Identified Integrated Reactor 5685 | -5/Zhirov | Installed Integrated Reactor, increased core energy generation (+10) 5697 | -5/Zhirov | Found Alien Artifact 5708 | -5/Zhirov | Entered Proximity Caves 6008 | -4/Proximity Caves | Discovered exit to Factory (range 19) 6031 | -4/Proximity Caves | Spotted B-86 Titan 6043 | -4/Proximity Caves | Entered Factory 6043 | -4/Factory | Evolved 2 slots: Utility x2 6044 | -4/Factory | Identified exit to Armory 6045 | -4/Factory | Loaded intel: 56 interactive machine locations 6046 | -4/Factory | Loaded intel: 4 scanalyzer locations 6133 | -4/Factory | Identified exit to Upper Caves 6133 | -4/Factory | Identified exit to Extension 6134 | -4/Factory | Identified Transdimensional Reconstructor 6160 | -4/Factory | Loaded intel: 8 recycling unit locations 6302 | -4/Factory | Learned Testing garrison access intel 6343 | -4/Factory | Learned Armory emergency access door positions 6354 | -4/Factory | Discovered new exit (range 17) 6363 | -4/Factory | Spotted B-86 Titan 6393 | -4/Factory | Learned Armory trap positions 6409 | -4/Factory | Learned location of Warlord (-4) 6421 | -4/Factory | Learned location of 1 exit from Quarantine 6428 | -4/Factory | Discovered new exit (range 18) 6502 | -4/Factory | Spotted B-86 Titan 6527 | -4/Factory | Fabricated Lrn. Sensor Array? 6540 | -4/Factory | Lost 3 parts (2p1n) 6586 | -4/Factory | Entered Extension 6610 | -4/Extension | Lost 5 parts (3n1u1w) 6627 | -4/Extension | Rescued a captive Derelict 6641 | -4/Extension | Rescued a captive Derelict 6717 | -4/Extension | Rescued a captive Derelict 6718 | -4/Extension | Rescued a captive Derelict 6744 | -4/Extension | Rescued a captive Derelict 6744 | -4/Extension | Rescued a captive Derelict 6751 | -4/Extension | Rescued a captive Derelict 6751 | -4/Extension | Rescued a captive Derelict 6764 | -4/Extension | Rescued a captive Derelict 6765 | -4/Extension | Rescued a captive Derelict 6855 | -4/Extension | Spotted B-86 Titan 6882 | -4/Extension | Rescued a captive Derelict 6883 | -4/Extension | Rescued a captive Derelict 6887 | -4/Extension | Lost 9 allies 6909 | -4/Extension | Rescued A7 6917 | -4/Extension | Rescued a captive Derelict 6927 | -4/Extension | Rescued a captive Derelict 6930 | -4/Extension | Rescued a captive Derelict 6976 | -4/Extension | Rescued a captive Derelict 7284 | -4/Extension | Discovered new exit (range 12) 7285 | -4/Extension | Discovered new exit (range 10) 7296 | -4/Extension | Identified exit to Research 7297 | -4/Extension | Identified exit to Cetus 7352 | -4/Extension | Build established: Commander-Ninja 7422 | -4/Extension | Entered Cetus 7422 | -4/Cetus | Accompanied by 14 allies (A7) 7427 | -4/Cetus | Acquired a Cetus Manufacturing Module code from A7 7433 | -4/Cetus | Spotted Cetus Guard 7433 | -4/Cetus | Spotted Cetus Guard 7437 | -4/Cetus | Allies destroyed Cetus Guard 7441 | -4/Cetus | Allies destroyed Cetus Guard 7452 | -4/Cetus | Spotted Cetus Guard 7458 | -4/Cetus | Destroyed Cetus Guard 7511 | -4/Cetus | Started Cetus Manufacturing Module 7536 | -4/Cetus | Manufactured an Enhanced Grunt 7553 | -4/Cetus | Discovered new exit (range 15) 7561 | -4/Cetus | Manufactured an Enhanced Grunt 7586 | -4/Cetus | Manufactured an Enhanced Grunt 7611 | -4/Cetus | Manufactured an Enhanced Grunt 7636 | -4/Cetus | Manufactured an Enhanced Grunt 7708 | -4/Cetus | Spotted Cetus Guard 7708 | -4/Cetus | Spotted Cetus Guard 7709 | -4/Cetus | Spotted Cetus Guard 7715 | -4/Cetus | Allies destroyed Cetus Guard 7716 | -4/Cetus | Allies destroyed Cetus Guard 7719 | -4/Cetus | Allies destroyed Cetus Guard 7721 | -4/Cetus | Discovered exit to Research (range 16) 7726 | -4/Cetus | Met Revision 17 7740 | -4/Cetus | Identified exit to Archives 7807 | -4/Cetus | Entered Archives 7807 | -4/Archives | Accompanied by 13 allies (A7) 7862 | -4/Archives | Unable to access archive contents 7866 | -4/Archives | Discovered new exit (range 15) 7867 | -4/Archives | Lost 4 allies 7871 | -4/Archives | Identified exit to Hub_04(d) 7931 | -4/Archives | Entered Hub_04(d) 7931 | -4/Hub_04(d) | Accompanied by 8 allies 7948 | -4/Hub_04(d) | Network Hub disabled 7948 | -4/Hub_04(d) | Network Hub disabled 7956 | -4/Hub_04(d) | Spotted Lightning 7959 | -4/Hub_04(d) | Entered Research 7959 | -3/Research | Evolved 2 slots: Weapon x2 7960 | -3/Research | Identified exit to Quarantine 7961 | -3/Research | Identified exit to Research 8149 | -3/Research | Loaded intel: 5 recycling unit locations 8159 | -3/Research | Revision forces began assault on 0b10 8192 | -3/Research | Spotted B-90 Cyclops 8264 | -3/Research | Found Prototype Device 8276 | -3/Research | Identified Exp. Thermal Shield 8283 | -3/Research | Build established: Hacker-Mutant 8317 | -3/Research | Found Gamma Bomb Array 8536 | -3/Research | Spotted B-86 Titan 8633 | -3/Research | Learned 4 Access zone layouts 8659 | -3/Research | Research terminal network offline 8707 | -3/Research | Fabricated Exp. Signal Interpreter (x1) 8728 | -3/Research | Build established: Hacker-Sprinter 8748 | -3/Research | Entered Quarantine 8763 | -3/Quarantine | Found Alien Artifact 8776 | -3/Quarantine | Found Alien Artifact 8792 | -3/Quarantine | Identified Core Reset Matrix 8792 | -3/Quarantine | Identified Hpw. Transdimensional Reconstructor 8824 | -3/Quarantine | Found Alien Artifact 8850 | -3/Quarantine | Found Alien Energy Cannon 8850 | -3/Quarantine | Identified Core Cannon 9122 | -3/Quarantine | Found Alien Slashing Weapon 9122 | -3/Quarantine | Identified Sigix Broadsword 9130 | -3/Quarantine | Entered Research 9130 | -2/Research | Evolved 2 slots: Weapon x2 9234 | -2/Research | Identified exit to Testing 9283 | -2/Research | Discovered new exit (range 13) 9303 | -2/Research | Loaded intel: 5 recycling unit locations 9332 | -2/Research | Discovered new exit (range 15) 9349 | -2/Research | Identified exit to Access 9362 | -2/Research | Entered Testing 9363 | -2/Testing | Loaded intel: 1 garrison access location 9370 | -2/Testing | Found Prototype Processor 9370 | -2/Testing | Identified Exp. Core Analyzer 9388 | -2/Testing | Lost 8 parts (1p3n3u1w) 9394 | -2/Testing | Spotted PL-SDYMLRWB0D 9400 | -2/Testing | Identified Dimensional Node Initializer 9459 | -2/Testing | Discovered exit to Access (range 15) 9459 | -2/Testing | Protovariant out of control (PL-SDYMLRWB0D) 9459 | -2/Testing | Unleashed a protovariant (PL-SDYMLRWB0D) 9469 | -2/Testing | Spotted PD-8Q82UBYYD3 9514 | -2/Testing | Spotted Fortress 9524 | -2/Testing | Discovered new exit (range 6) 9524 | -2/Testing | Discovered new exit (range 7) 9525 | -2/Testing | Identified exit to Protoforge 9525 | -2/Testing | Identified exit to Section 7 9526 | -2/Testing | Entered Protoforge 9558 | -2/Protoforge | Superfortress began startup sequence 9653 | -2/Protoforge | Discovered exit to Access (range 10) 9665 | -2/Protoforge | Build established: Sprinter 9722 | -2/Protoforge | Spotted EXE-6 9722 | -2/Protoforge | Spotted EXE-6 9728 | -2/Protoforge | UFD initiated attack on Protoforge 9728 | -2/Protoforge | Loaded intel: 3 recycling unit locations 9752 | -2/Protoforge | Initialized slip node 9767 | -2/Protoforge | Warped through subspace to slip node 9768 | -2/Protoforge | Optimus greeted in Protoforge 9769 | -2/Protoforge | Found Exp. Core Analyzer 9771 | -2/Protoforge | Found Exp. Core Analyzer 9778 | -2/Protoforge | Found Prototype Processor 9778 | -2/Protoforge | Identified Exp. Armor Integrity Analyzer 9786 | -2/Protoforge | Found Prototype Ballistic Gun 9786 | -2/Protoforge | Identified Cep. XC Strikerail 9795 | -2/Protoforge | Found Cep. XC Strikerail 9826 | -2/Protoforge | Spotted SKR-2 9829 | -2/Protoforge | Spotted SKR-2 9829 | -2/Protoforge | Spotted SKR-2 9874 | -2/Protoforge | Spotted EXE-6 9876 | -2/Protoforge | Met 7R-MNS 9977 | -2/Protoforge | Destroyed 7 combat bots 9978 | -2/Protoforge | Forge Plexus network access discovered 9998 | -2/Protoforge | Spotted Decapitator 9999 | -2/Protoforge | Spotted Decapitator 10002 | -2/Protoforge | Spotted Decapitator 10008 | -2/Protoforge | Spotted Decapitator 10035 | -2/Protoforge | Lost 5 allies 10075 | -2/Protoforge | Spotted Striker 10171 | -2/Protoforge | Spotted Overlord 10186 | -2/Protoforge | Spotted Executioner 10231 | -2/Protoforge | Lost 8 allies 10346 | -2/Protoforge | Found Scrap Suit 10349 | -2/Protoforge | Spotted Striker 10349 | -2/Protoforge | Spotted Executioner 10395 | -2/Protoforge | Lost 8 allies 10480 | -2/Protoforge | Spotted Executioner 10485 | -2/Protoforge | Spotted Hotshot 10491 | -2/Protoforge | Spotted Hotshot 10495 | -2/Protoforge | Spotted Hotshot 10497 | -2/Protoforge | Spotted Hotshot 10499 | -2/Protoforge | Destroyed Hotshot 10613 | -2/Protoforge | Spotted Striker 10614 | -2/Protoforge | Spotted Striker 10619 | -2/Protoforge | Spotted Executioner 10621 | -2/Protoforge | Spotted Executioner 10627 | -2/Protoforge | Destroyed Executioner 10634 | -2/Protoforge | Spotted Striker 10637 | -2/Protoforge | Spotted Striker 10649 | -2/Protoforge | Destroyed Striker 10678 | -2/Protoforge | Lost 4 allies 10686 | -2/Protoforge | Found 0bPrime Scrap Suit 10703 | -2/Protoforge | Spotted Executioner 10715 | -2/Protoforge | Spotted Executioner 10715 | -2/Protoforge | Destroyed Executioner 10729 | -2/Protoforge | Destroyed Executioner 10751 | -2/Protoforge | Found Exp. Targeting Computer 10752 | -2/Protoforge | Destroyed 10 combat bots 10754 | -2/Protoforge | Lost 10 allies 10759 | -2/Protoforge | Found Exp. Targeting Computer 10775 | -2/Protoforge | Spotted Striker 10776 | -2/Protoforge | Spotted Executioner 10776 | -2/Protoforge | Spotted Executioner 10776 | -2/Protoforge | Spotted Striker 10781 | -2/Protoforge | Destroyed Executioner 10789 | -2/Protoforge | Destroyed Striker 10791 | -2/Protoforge | Destroyed Executioner 10809 | -2/Protoforge | Lost 3 allies 10829 | -2/Protoforge | Spotted Executioner 10830 | -2/Protoforge | Spotted Hotshot 10832 | -2/Protoforge | Destroyed Executioner 10839 | -2/Protoforge | Spotted Hotshot 10859 | -2/Protoforge | Destroyed Hotshot 10864 | -2/Protoforge | Destroyed Hotshot 10869 | -2/Protoforge | Spotted Hotshot 10872 | -2/Protoforge | Spotted Hotshot 10876 | -2/Protoforge | Destroyed Hotshot 10881 | -2/Protoforge | Destroyed Hotshot 10925 | -2/Protoforge | Spotted Striker 10927 | -2/Protoforge | Spotted Striker 10930 | -2/Protoforge | Destroyed Striker 10933 | -2/Protoforge | Destroyed Striker 10966 | -2/Protoforge | Build established: Scavenger-Scrapper 10995 | -2/Protoforge | Spotted Decapitator 10995 | -2/Protoforge | Spotted Decapitator 11012 | -2/Protoforge | Spotted Executioner 11013 | -2/Protoforge | Spotted Striker 11015 | -2/Protoforge | Destroyed Executioner 11016 | -2/Protoforge | Spotted Executioner 11017 | -2/Protoforge | Spotted Striker 11020 | -2/Protoforge | Spotted Executioner 11022 | -2/Protoforge | Destroyed Executioner 11023 | -2/Protoforge | Spotted Executioner 11025 | -2/Protoforge | Core integrity fell below 50% 11028 | -2/Protoforge | Destroyed Executioner 11031 | -2/Protoforge | Destroyed Striker 11036 | -2/Protoforge | Destroyed Executioner 11043 | -2/Protoforge | Warped through subspace 11070 | -2/Protoforge | Lost 7 allies 11073 | -2/Protoforge | Lost 3 parts (1n2w) 11181 | -2/Protoforge | Spotted Executioner 11181 | -2/Protoforge | Spotted 02F23-K 11194 | -2/Protoforge | Spotted Immortal 11194 | -2/Protoforge | Spotted Immortal 11241 | -2/Protoforge | Spotted Striker 11242 | -2/Protoforge | Spotted Striker 11250 | -2/Protoforge | Lost 3 allies 11252 | -2/Protoforge | Lost 3 parts (3w) 11296 | -2/Protoforge | Lost 7 allies 11501 | -2/Protoforge | Spotted Executioner 11519 | -2/Protoforge | Spotted Executioner 11543 | -2/Protoforge | Spotted Executioner 11546 | -2/Protoforge | Spotted Executioner 11547 | -2/Protoforge | Spotted Striker 11548 | -2/Protoforge | Spotted Striker 11580 | -2/Protoforge | Destroyed Striker 11590 | -2/Protoforge | System corruption reached 10% 11608 | -2/Protoforge | Spotted Hotshot 11610 | -2/Protoforge | Spotted Hotshot 11611 | -2/Protoforge | Spotted Hotshot 11616 | -2/Protoforge | Lost 3 allies 11616 | -2/Protoforge | Destroyed Hotshot 11618 | -2/Protoforge | Destroyed Hotshot 11857 | -2/Protoforge | Spotted Executioner 11862 | -2/Protoforge | Core integrity fell below 20% 11875 | -2/Protoforge | Spotted AP7-3 11881 | -2/Protoforge | Spotted Striker 11889 | -2/Protoforge | P-80 Master assimilated allied 02FET-D 11899 | -2/Protoforge | Destroyed Executioner 11918 | -2/Protoforge | Found Prototype Device 11918 | -2/Protoforge | Identified Adv. Kinecellerator 11922 | -2/Protoforge | Found Cep. XC Strikerail 11926 | -2/Protoforge | Found Exp. Core Analyzer 11935 | -2/Protoforge | Spotted Executioner 11936 | -2/Protoforge | Spotted Executioner 11936 | -2/Protoforge | Spotted Executioner 11991 | -2/Protoforge | Spotted Striker 11991 | -2/Protoforge | Spotted Striker 11998 | -2/Protoforge | Destroyed Striker 12002 | -2/Protoforge | Spotted Striker 12002 | -2/Protoforge | Spotted Executioner 12053 | -2/Protoforge | Destroyed 9 combat bots 12062 | -2/Protoforge | Lost 10 allies 12080 | -2/Protoforge | Found 0bPrime Scrap Suit 12195 | -2/Protoforge | Spotted Executioner 12202 | -2/Protoforge | Spotted Executioner 12230 | -2/Protoforge | Spotted Striker 12230 | -2/Protoforge | Spotted Executioner 12237 | -2/Protoforge | Destroyed Executioner 12242 | -2/Protoforge | Destroyed Striker 12248 | -2/Protoforge | Spotted Executioner 12260 | -2/Protoforge | Destroyed Executioner 12262 | -2/Protoforge | Destroyed Executioner 12269 | -2/Protoforge | Spotted Hotshot 12273 | -2/Protoforge | Destroyed Hotshot 12288 | -2/Protoforge | Spotted Hotshot 12294 | -2/Protoforge | Destroyed 14 combat bots 12443 | -2/Protoforge | Spotted Hotshot 12453 | -2/Protoforge | Destroyed Hotshot 12475 | -2/Protoforge | Destroyed Hotshot 12491 | -2/Protoforge | Spotted Executioner 12499 | -2/Protoforge | Spotted Striker 12507 | -2/Protoforge | Destroyed Striker 12513 | -2/Protoforge | Spotted Executioner 12533 | -2/Protoforge | Destroyed 8 combat bots 12538 | -2/Protoforge | Spotted Executioner 12544 | -2/Protoforge | Spotted Striker 12562 | -2/Protoforge | Spotted Striker 12563 | -2/Protoforge | Spotted Striker 12585 | -2/Protoforge | Spotted Immortal 12585 | -2/Protoforge | Spotted Immortal 12597 | -2/Protoforge | Spotted Immortal 12603 | -2/Protoforge | Lost 20 allies 12604 | -2/Protoforge | Spotted Immortal 12604 | -2/Protoforge | Spotted Immortal 12644 | -2/Protoforge | Entered Access 12644 | -1/Access | Evolved 2 slots: Propulsion x2 12686 | -1/Access | Spotted B-99 Colossus 12746 | -1/Access | Spotted Striker 12746 | -1/Access | Spotted Striker 12775 | -1/Access | Crushed by falling debris 12777 | -1/Access | Crushed by falling debris 12778 | -1/Access | System corruption reached 10% 12808 | -1/Access | Lost 6 parts (2n4u) 12810 | -1/Access | Energy Cycler disabled 12894 | -1/Access | First assault squad dispatched 12937 | -1/Access | Spotted B-99 Colossus 12939 | -1/Access | Identified exit to Command 12944 | -1/Access | Spotted Striker 12945 | -1/Access | Spotted Striker 12963 | -1/Access | Spotted Striker 12964 | -1/Access | Spotted Striker 12980 | -1/Access | Spotted Striker 12980 | -1/Access | Spotted Striker 12987 | -1/Access | Spotted Executioner 12987 | -1/Access | Spotted Executioner 12990 | -1/Access | Core integrity fell below 50% 13000 | -1/Access | Core integrity fell below 20% 13003 | -1/Access | Destroyed by G-73 Enforcer with Heavy Laser Last Messages --------------- 12992_ ECM Suite destroyed. 12992_ Exp. Coolant Injector severed. 12992_ Slug penetrates C-57 Dissector. 12992_ Slug penetrates Wall. 12995_ Exp. Optical Array severed. 12997_ Penetrated by Slug. 12997_ Adv. Signal Interpreter destroyed. 12998_ Exp. Q-thruster severed. 12998_ Slug penetrates B-74 Champion. 12998_ Penetrated by Slug. 12998_ B-74 Champion suffers critical hit (Destroy). 12998_ B-74 Champion destroyed. 12999_ Penetrated by Slug. 12999_ Slug penetrates Wall. 13000_ Penetrated by Slug. 13000_ Slug penetrates C-57 Dissector. 13000_ C-57 Dissector destroyed. 13001_ Slug penetrates C-57 Dissector. 13001_ Penetrated by Slug. Map ----- +----------------------------------------------------+ | #??# """"" # | | "" #??# # | | "" #??# # | | "" #??# ## # | | " ##########??# """"" #?###### | | "" # ????# """""""" #??????? | | "" # ?????# """""""" ??????? | | "" # ??????# """"" ?????? | | # ??????# ????? | | # ????#### ????? | | # ?????# ???? | | ##+###???# " = ???? | | ##### """ ???? | | g """ ???? | | " ####???? | | / =g #??????? | | """"" *%= h #??????? | | """""""" / #??????? | | """""""" %= #??????? | | ??""""" #?###/#####???????? | | ?? ######c h #???? ????????????? | | ??? #????# #?????????????????? | | ??? #????# #?????????????????? | | ??? #????# c ####?????????????????? | | ??? #????# c #????????????????????? | | ??? #????# @gt#????????????????????? | | ??? #????########R#????????????????????? | | ????##########??????????????#????????????????????? | | ?????????????????????????????????????????????????? | | ?????????????????????????????????????????????????? | | ?????????????????????????????????????????????????? | | ?????????????????????????????????????????????????? | | ?????????????????????????????????????????????????? | | ?????????????????????????????????????????????????? | | ?????????????????????????????????????????????????? | | ?????????????????????????????????????????????????? | | ?????????????????????????????????????????????????? | | ?????????????????????????????????????????????????? | | ???????????????>?????????????????????????????????? | | ?????????????????????????????????????????????????? | | ?????????????????????????????????????????????????? | | ?????????????????????????????????????????????????? | | ?????????????????????????????????????????????????? | | ?????????????????????????????????????????????????? | | ?????????????????????????????????????????????????? | | ?????????????????????????????????????????????????? | | ?????????????????????????????????????????????????? | | ?????????????????????????????????????????????????? | | ?????????????????????????????????????????????????? | | ?????????????????????????????????????????????????? | +----------------------------------------------------+ Best States ------------- Heat Dissipation 75 Coolant Potential 120 Energy Generation 51 Energy Capacity 2700 Matter Stores 300 Matter Capacity 300 Sight Range 23 Robot Scan Range 18 Terrain Scan Range 20 Terrain Scan Density 1210 ECM Strength 1 Jamming Range 16 Additional Mass Support 9 Base Temperature (-) 200 Armor Coverage 225 Propulsion Shielding 90 Weapon Shielding 90 Phase Shifting 15 Evasion (%) 93 Targeting Accuracy 24 Core Analysis 12 Armor Integrity Analysis 50 Recoil Reduction 3 Kinecelleration 50 Salvage Targeting 4 Offensive Hacking 56 Defensive Hacking 14 Item Schematics ----------------- Mni. Smartbomb Launcher | -5/Factory | Scanalyzed Assault Drone Bay | -5/Zhirov | Free Exp. Heat Sink | -5/Zhirov | Free Exp. Optical Array | -5/Zhirov | Free Imp. Arc Thrower | -5/Zhirov | Free Lrn. Sensor Array | -4/Factory | Hacked Exp. Signal Interpreter | -4/Factory | Hacked Exp. Propulsion Shielding | -4/Factory | Hacked Cld. VTOL Module | -3/Research | Hacked Mic. Fission Core | -3/Research | Hacked Robot Schematics ------------------ None Fabricated ------------ Mni. Smartbomb Launcher | x1 | -5/Factory Lrn. Sensor Array | x2 | -4/Factory Exp. Signal Interpreter | x1 | -3/Research Repaired ---------- Nothing Alien Tech Used ----------------- Integrated Reactor Core Cannon Sigix Broadsword Dimensional Node Initializer High-powered Transdimensional Reconstructor Transdimensional Reconstructor Achievements -------------- Rampage Challenges ------------ None Game ------ Seed SigixActuatorAutogun Manual? 0 Play Time 05:09:40 Cumulative 61.5 hours Start 2025.08.08 @ 23:36:55 End 2025.08.09 @ 16:20:40 Sessions 3 Manual Loads 0 Difficulty Rogue Special Mode None Game No. 18 Rogue 18 Adventurer 0 Explorer 0 Win Type - Total 1 Types 0/0/1/0/0/0/0/0/0/0 Lore% 53 Gallery% 46 Achievement% 73 Wizard Run 0 Options --------- Layout 2 ASCII 0 Keyboard 1 Movement Vi Keybinds 0 Fullscreen 1 Font 28/SwanstonBold Map View 50x52 Zoom Use 0% Tactical HUD 1 Map Filters NONE Filters NONE Steam 1 RUN: 5f459dca-39ae-4e8f-94c2-edcdac3e1439